bitfinex/quotes_SOLUSD_20220226
["timestamp","ask_amount","ask_price","bid_price","bid_amount"]
[1645837567349,106.0,94.667,94.57,0.5376214]
[1645837567556,106.0,94.665,94.57,0.5376214]
[1645837567750,5.0,94.659,94.57,0.5376214]
[1645837567949,106.0,94.649,94.57,0.5376214]
[1645837568150,28.5735,94.65,94.57,0.5376214]
[1645837568151,106.0,94.647,94.57,0.5376214]
[1645837568351,106.0,94.645,94.57,0.0076214]
[1645837568552,106.0,94.639,94.516,2.51128859]
[1645837568751,1.82316668,94.638,94.481,50.9255091]
[1645837568952,110.23,94.637,94.482,2.68971466]
[1645837569152,1.72243206,94.636,94.482,2.68971466]
[1645837569351,4.23,94.635,94.482,2.68971466]
[1645837569551,15.8718,94.63,94.483,55.5050684]
[1645837569752,23.29586429,94.629,94.484,2.31512888]
[1645837569954,1.60918246,94.628,94.484,2.31512888]
[1645837570151,5.67444743,94.627,94.484,2.31512888]
[1645837570368,1.69344744,94.625,94.484,2.31512888]
[1645837570570,4.23,94.624,94.484,2.31512888]
[1645837570770,7.4346494,94.589,94.484,2.31512888]
[1645837570968,55.7683494,94.589,94.484,2.31512888]
[1645837571372,2.42839891,94.588,94.485,2.66790246]
[1645837571571,2.42839891,94.61,94.486,106.0]
[1645837571771,2.42839891,94.61,94.491,106.0]
[1645837571969,2.42839891,94.61,94.493,106.0]
[1645837572370,2.42839891,94.61,94.495,106.0]
[1645837572571,48.9942,94.622,94.501,106.0]
[1645837572772,18.29219891,94.65,94.511,106.0]
[1645837572972,47.8482,94.667,94.512,2.59132295]
[1645837573172,47.8482,94.667,94.513,110.228]
[1645837573375,27.3819686,94.666,94.515,106.0]
[1645837573573,27.3819686,94.666,94.514,60.51018449]
[1645837573574,27.3819686,94.666,94.531,106.0]
[1645837573882,2.42839891,94.665,94.55,15.8613]
[1645837574073,2.42839891,94.665,94.551,52.61325676]
[1645837574273,2.42839891,94.665,94.552,2.61473041]
[1645837576781,15.8627,94.66,94.552,2.61473041]
[1645837577181,2.42839891,94.659,94.552,2.61473041]
[1645837577380,2.42839891,94.659,94.552,108.61473041]
[1645837577783,2.42839891,94.659,94.553,2.40572816]
[1645837580485,2.42839891,94.659,94.561,2.83131491]
[1645837583390,47.8482,94.667,94.561,2.83131491]
[1645837583592,47.8482,94.667,94.561,108.83131491]
[1645837583797,47.8482,94.667,94.562,2.84315278]
[1645837583995,22.4951304,94.666,94.562,2.84315278]
[1645837586294,2.42839891,94.679,94.571,106.0]
[1645837586493,2.42839891,94.679,94.572,2.28215521]
[1645837587194,22.90344114,94.678,94.574,106.0]
[1645837587396,22.90344114,94.678,94.575,2.64244922]
[1645837587995,22.90344114,94.678,94.58,15.8562]
[1645837588196,22.90344114,94.678,94.581,2.28143476]
[1645837588398,2.42839891,94.677,94.581,2.28143476]
[1645837588598,106.0,94.676,94.574,2.82949632]
[1645837588797,106.0,94.674,94.574,2.82949632]
[1645837589098,39.69932747,94.675,94.574,2.82949632]
[1645837589397,1.86393396,94.669,94.574,2.82949632]
[1645837589600,4.227,94.668,94.574,2.82949632]
[1645837589897,1.65731318,94.667,94.544,2.83020619]
[1645837590097,1.8259725,94.666,94.544,2.83020619]
[1645837590300,1.75174154,94.665,94.544,2.83020619]
[1645837590596,15.8656,94.65,94.544,2.83020619]
[1645837590797,50.31258791,94.649,94.545,56.17340961]
[1645837591000,46.6321,94.649,94.546,3.03031298]
[1645837591202,49.06049891,94.649,94.546,3.03031298]
[1645837591401,46.6321,94.649,94.546,3.03031298]
[1645837592003,22.37216042,94.648,94.546,3.03031298]
[1645837592303,22.37216042,94.648,94.55,15.8613]
[1645837592501,22.37216042,94.648,94.551,3.0475643]
[1645837592699,46.6321,94.649,94.551,3.0475643]
[1645837592901,21.96842877,94.662,94.551,109.0475643]
[1645837593101,21.96842877,94.662,94.552,2.2778686]
[1645837593301,21.96842877,94.662,94.552,5.14079287]
[1645837593502,21.96842877,94.662,94.553,2.86292427]
[1645837593702,18.43091801,94.661,94.56,15.8595]
[1645837593902,18.43091801,94.661,94.561,49.59467558]
[1645837594101,21.96842877,94.662,94.562,2.40530199]
[1645837594301,48.7833,94.676,94.562,2.40530199]
[1645837594503,70.75172877,94.676,94.563,24.7725]
[1645837594706,70.75172877,94.676,94.564,108.70846682]
[1645837594906,70.75172877,94.676,94.571,106.0]
[1645837595105,70.75172877,94.676,94.572,2.49440355]
[1645837596106,70.75172877,94.676,94.58,15.8562]
[1645837596304,70.75172877,94.676,94.581,61.79384339]
[1645837596527,70.75172877,94.676,94.582,2.6759954]
[1645837596924,2.42839891,94.675,94.582,2.6759954]
[1645837597124,70.75172877,94.676,94.582,2.6759954]
[1645837601828,2.42839891,94.675,94.582,2.6759954]
[1645837602227,70.75172877,94.676,94.582,2.6759954]
[1645837602428,48.7833,94.676,94.582,2.6759954]
[1645837602630,21.96842877,94.675,94.582,2.6759954]
[1645837603328,2.42839891,94.674,94.582,2.6759954]
[1645837603929,21.96842877,94.673,94.582,2.6759954]
[1645837604328,2.42839891,94.672,94.582,2.6759954]
[1645837605931,21.96842877,94.673,94.582,2.6759954]
[1645837607733,48.7833,94.676,94.582,2.6759954]
[1645837614136,2.428242,94.675,94.582,2.6759954]
[1645837616338,21.96842877,94.674,94.582,2.6759954]
[1645837617147,119.30111489,94.673,94.543,17.15075219]
[1645837617344,54.227,94.672,94.52,12.71]
[1645837617541,12.71,94.66,94.519,4.227]
[1645837617743,116.93830325,94.659,94.485,15.7168]
[1645837617941,1.49383758,94.658,94.467,2.83906786]
[1645837618144,5.0,94.639,94.463,0.96233668]
[1645837618341,174.7835,94.63,94.463,0.96233668]
[1645837618541,111.87975836,94.629,94.463,0.96233668]
[1645837618741,5.0,94.619,94.463,0.96233668]
[1645837618941,5.0,94.609,94.463,0.96233668]
[1645837619144,106.0,94.607,94.463,0.96233668]
[1645837619341,23.4364,94.608,94.463,0.96233668]
[1645837619342,107.6661011,94.579,94.463,0.96233668]
[1645837619543,4.231,94.578,94.463,0.96233668]
[1645837619742,106.0,94.569,94.463,0.96233668]
[1645837619943,106.0,94.567,94.463,0.96233668]
[1645837620142,1.72831338,94.566,94.463,0.96233668]
[1645837620351,1.72831338,94.566,94.464,60.08331269]
[1645837620847,1.42878167,94.597,94.465,106.0]
[1645837621046,1.53220979,94.596,94.465,108.86292427]
[1645837621245,1.53220979,94.596,94.465,2.86292427]
[1645837621445,1.53220979,94.596,94.466,2.86292427]
[1645837621644,2.46049339,94.595,94.466,2.86292427]
[1645837621845,1.77451124,94.588,94.464,60.08331269]
[1645837622046,4.231,94.587,94.464,60.08331269]
[1645837622243,106.0,94.586,94.464,60.08331269]
[1645837622445,106.0,94.584,94.464,60.08331269]
[1645837622643,12.71,94.57,94.45,7.0]
[1645837622847,5.0,94.559,94.45,7.0]
[1645837623044,1.50504149,94.556,94.45,7.0]
[1645837623247,106.0,94.549,94.45,7.0]
[1645837623445,106.0,94.547,94.45,7.0]
[1645837623645,4.232,94.546,94.45,7.0]
[1645837623847,5.65335059,94.546,94.45,7.0]
[1645837624048,2.46042461,94.546,94.45,7.0]
[1645837624246,2.46042461,94.545,94.45,7.0]
[1645837624448,1.54807196,94.554,94.45,7.0]
[1645837625248,12.71,94.55,94.45,7.0]
[1645837625449,1.36153305,94.549,94.45,7.0]
[1645837625648,49.01864558,94.549,94.45,7.0]
[1645837625846,4.00101111,94.548,94.45,7.0]
[1645837626047,1.44485083,94.547,94.45,7.0]
[1645837626247,4.232,94.546,94.45,7.0]
[1645837626449,15.8849,94.54,94.45,7.0]
[1645837626849,1.6505386,94.539,94.45,7.0]
[1645837627051,4.11096321,94.539,94.45,7.0]
[1645837627249,2.46042461,94.538,94.45,7.0]
[1645837627549,15.8866,94.53,94.45,7.0]
[1645837627753,12.71,94.52,94.45,7.0]
[1645837627952,12.71,94.51,94.45,7.0]
[1645837628149,1.78462255,94.509,94.45,7.0]
[1645837628348,1.78462255,94.509,94.451,57.16472676]
[1645837628750,2.46042461,94.509,94.451,57.16472676]
[1645837629349,7.01180854,94.508,94.451,57.16472676]
[1645837630454,2.46042461,94.529,94.451,57.16472676]
[1645837631752,23.0453,94.536,94.451,57.16472676]
[1645837631952,2.46042461,94.54,94.451,57.16472676]
[1645837632151,2.46042461,94.555,94.451,57.16472676]
[1645837632353,2.46042461,94.535,94.451,57.16472676]
[1645837632552,2.46042461,94.556,94.451,57.16472676]
[1645837632956,22.20320652,94.554,94.451,57.16472676]
[1645837633153,1.7140617,94.553,94.451,57.16472676]
[1645837633452,4.16744365,94.553,94.451,57.16472676]
[1645837633654,24.65658847,94.552,94.451,57.16472676]
[1645837633853,1.55150736,94.551,94.451,57.16472676]
[1645837634054,4.00488931,94.551,94.451,57.16472676]
[1645837634353,27.72808085,94.55,94.451,57.16472676]
[1645837634755,26.74048195,94.549,94.451,57.16472676]
[1645837634954,26.74048195,94.549,94.452,3.0658688]
[1645837635154,2.45338195,94.548,94.452,3.0658688]
[1645837635954,24.2871,94.549,94.452,3.0658688]
[1645837636154,24.2871,94.549,94.451,57.16472676]
[1645837636354,8.79064616,94.548,94.451,57.16472676]
[1645837636556,1.84016704,94.547,94.451,57.16472676]
[1645837636755,1.85781659,94.546,94.451,57.16472676]
[1645837636958,8.99119854,94.546,94.451,57.16472676]
[1645837637159,2.45338195,94.545,94.451,57.16472676]
[1645837639359,1.56571122,94.543,94.451,57.16472676]
[1645837639859,7.13338195,94.542,94.451,57.16472676]
[1645837640058,25.38808085,94.542,94.451,57.16472676]
[1645837640258,3.82732833,94.541,94.451,57.16472676]
[1645837640461,2.45338195,94.541,94.451,57.16472676]
[1645837640762,2.45338195,94.54,94.451,57.16472676]
[1645837641359,1.65253935,94.546,94.451,57.16472676]
[1645837641561,1.65253935,94.546,94.452,108.86292427]
[1645837641759,24.2871,94.549,94.453,2.63851085]
[1645837641959,24.2871,94.549,94.454,106.0]
[1645837642163,1.85880135,94.597,94.455,2.6350612]
[1645837642359,47.65420135,94.597,94.456,106.0]
[1645837642560,1.84412259,94.596,94.471,106.0]
[1645837642760,1.84412259,94.596,94.472,47.86152167]
[1645837642960,22.9346989,94.595,94.473,2.75583539]
[1645837643160,1.833176,94.594,94.473,2.75583539]
[1645837643367,1.833176,94.594,94.473,5.61875966]
[1645837643560,22.9346989,94.593,94.48,15.8727]
[1645837643761,1.67967251,94.592,94.48,15.8727]
[1645837644161,22.9346989,94.591,94.48,15.8727]
[1645837644360,22.9346989,94.591,94.481,2.59073555]
[1645837644966,1.52652807,94.59,94.481,2.59073555]
[1645837645365,24.46122697,94.59,94.481,2.59073555]
[1645837645566,1.47858946,94.589,94.481,2.59073555]
[1645837645869,24.90379598,94.589,94.481,2.59073555]
[1645837646065,25.03843556,94.588,94.481,2.59073555]
[1645837646265,1.37136815,94.587,94.481,2.59073555]
[1645837646465,24.79657467,94.587,94.481,2.59073555]
[1645837646769,23.42520652,94.586,94.481,2.59073555]
[1645837647266,27.11057952,94.585,94.48,15.8727]
[1645837647465,1.59408907,94.584,94.48,15.8727]
[1645837647665,47.95399449,94.584,94.48,15.8727]
[1645837647874,36.42422378,94.583,94.48,15.8727]
[1645837648066,1.77194892,94.582,94.48,15.8727]
[1645837648266,36.38063592,94.582,94.48,15.8727]
[1645837648568,1.65214333,94.58,94.48,15.8727]
[1645837648969,34.608687,94.579,94.48,15.8727]
[1645837649169,1.66631702,94.578,94.48,15.8727]
[1645837649371,1.66631702,94.578,94.48,15.5569]
[1645837649571,2.44620162,94.577,94.472,45.09550042]
[1645837649769,38.68612091,94.577,94.472,45.09550042]
[1645837649970,17.78138869,94.576,94.472,45.09550042]
[1645837650171,1.73367845,94.575,94.472,45.09550042]
[1645837650370,42.84237286,94.575,94.472,45.09550042]
[1645837650570,24.36824166,94.574,94.472,45.09550042]
[1645837650769,1.70425648,94.573,94.472,45.09550042]
[1645837650970,27.57566462,94.573,94.472,45.09550042]
[1645837651272,13.59804139,94.572,94.472,45.09550042]
[1645837651477,1.69488527,94.582,94.473,2.86292427]
[1645837651873,2.44620162,94.581,94.473,2.86292427]
[1645837652672,23.42520652,94.58,94.48,15.8729]
[1645837652891,1.82396426,94.579,94.472,45.09550042]
[1645837653089,4.27016588,94.579,94.472,45.09550042]
[1645837653290,25.87140814,94.578,94.472,45.09550042]
[1645837653492,1.76695444,94.577,94.472,45.09550042]
[1645837653690,25.11300353,94.577,94.472,45.09550042]
[1645837653892,21.56258884,94.576,94.472,45.09550042]
[1645837654092,1.57973691,94.575,94.472,45.09550042]
[1645837654290,4.0338889,94.575,94.472,45.09550042]
[1645837654492,2.45415199,94.574,94.472,45.09550042]
[1645837656496,12.71,94.57,94.472,45.09550042]
[1645837656694,1.63533037,94.569,94.472,45.09550042]
[1645837656895,4.0976274,94.569,94.472,45.09550042]
[1645837657194,1.4804269,94.567,94.472,45.09550042]
[1645837657594,2.46229703,94.566,94.472,45.09550042]
[1645837657796,24.3685,94.565,94.472,45.09550042]
[1645837657996,1.65442223,94.564,94.472,45.09550042]
[1645837658195,24.42192578,94.564,94.472,45.09550042]
[1645837658395,2.46229703,94.563,94.472,45.09550042]
[1645837658596,22.76750355,94.563,94.472,45.09550042]
[1645837658795,1.51175544,94.562,94.472,45.09550042]
[1645837658999,3.97405247,94.562,94.472,45.09550042]
[1645837659199,12.71,94.56,94.472,45.09550042]
[1645837659599,4.04614795,94.559,94.472,45.09550042]
[1645837659800,4.04614795,94.559,94.422,494.0990556]
[1645837659801,128.76750355,94.559,94.422,491.51760338]
[1645837660001,106.0,94.557,94.422,491.51760338]
[1645837660297,1.65202214,94.554,94.422,491.51760338]
[1645837660498,106.0,94.539,94.422,491.51760338]
[1645837660698,1.67854168,94.538,94.423,47.69817851]
[1645837660900,4.233,94.537,94.423,47.69817851]
[1645837661098,6.69529703,94.537,94.423,47.69817851]
[1645837661300,1.38977615,94.535,94.423,47.69817851]
[1645837661901,1.35524144,94.533,94.423,47.69817851]
[1645837662298,2.46229703,94.532,94.423,47.69817851]
[1645837662500,23.463,94.534,94.424,5.96723943]
[1645837662999,27.33669703,94.562,94.426,2.63700689]
[1645837663399,27.33669703,94.562,94.431,106.0]
[1645837663598,1.77328498,94.561,94.431,2.91276061]
[1645837663799,24.453,94.56,94.432,22.9585]
[1645837664103,1.45222351,94.559,94.433,2.70602492]
[1645837664299,1.45222351,94.559,94.433,5.56894919]
[1645837664499,1.45222351,94.559,94.434,2.86292427]
[1645837665098,1.45222351,94.559,94.435,106.0]
[1645837665399,1.45222351,94.559,94.441,45.97891249]
[1645837665699,2.46229703,94.558,94.441,45.97891249]
[1645837667502,2.46229703,94.558,94.45,15.8775]
[1645837669403,2.46229703,94.558,94.441,45.97891249]
[1645837670606,106.0,94.556,94.441,45.97891249]
[1645837670803,1.83072914,94.555,94.441,45.97891249]
[1645837671105,1.39507913,94.553,94.441,45.97891249]
[1645837671503,6.69429703,94.552,94.441,45.97891249]
[1645837671707,1.68403028,94.551,94.441,45.97891249]
[1645837671904,1.57553821,94.55,94.441,45.97891249]
[1645837672107,110.233,94.549,94.441,45.97891249]
[1645837672305,1.60311681,94.548,94.441,45.97891249]
[1645837672505,110.233,94.547,94.441,45.97891249]
[1645837672705,1.76116419,94.544,94.441,45.97891249]
[1645837673005,1.48530498,94.538,94.441,45.97891249]
[1645837673407,112.69529703,94.537,94.441,45.97891249]
[1645837673705,1.65673827,94.536,94.441,45.97891249]
[1645837673904,4.233,94.535,94.441,45.97891249]
[1645837674105,22.6446,94.534,94.441,45.97891249]
[1645837674307,6.07952473,94.533,94.441,45.97891249]
[1645837674605,4.30882176,94.533,94.441,45.97891249]
[1645837674805,2.46229703,94.532,94.441,45.97891249]
[1645837675005,1.4507298,94.531,94.441,45.97891249]
[1645837675405,2.46229703,94.53,94.441,45.97891249]
[1645837676506,2.46229703,94.53,94.41,15.8846]
[1645837676706,106.0,94.528,94.411,23.7673]
[1645837676909,1.71532826,94.527,94.411,23.7673]
[1645837677106,106.0,94.526,94.397,24.9217]
[1645837677306,106.0,94.524,94.397,24.9217]
[1645837677506,106.0,94.509,94.398,42.71381956]
[1645837677706,12.71,94.5,94.398,42.71381956]
[1645837678006,110.235,94.499,94.398,42.71381956]
[1645837678207,1.54239384,94.498,94.398,42.71381956]
[1645837678405,4.00469087,94.498,94.398,42.71381956]
[1645837678605,2.46229703,94.497,94.398,42.71381956]
[1645837678805,24.4436,94.496,94.398,42.71381956]
[1645837679006,1.54239978,94.495,94.398,42.71381956]
[1645837679405,2.46229703,94.494,94.398,42.71381956]
[1645837683313,2.46229703,94.494,94.381,22.7766]
[1645837683515,1.4023682,94.493,94.381,22.7766]
[1645837683713,22.88086547,94.493,94.381,22.7766]
[1645837683912,4.1554982,94.492,94.381,22.7766]
[1645837684313,2.4622355,94.491,94.381,22.7766]
[1645837684513,2.4622355,94.491,94.382,58.30514157]
[1645837686015,21.47849727,94.49,94.382,58.30514157]
[1645837686216,1.37477692,94.489,94.382,58.30514157]
[1645837686516,1.55405373,94.488,94.382,58.30514157]
[1645837686715,24.32149575,94.488,94.382,58.30514157]
[1645837686915,3.99352469,94.487,94.382,58.30514157]
[1645837687115,1.77780756,94.486,94.381,22.7766]
[1645837687318,24.54524958,94.486,94.381,22.7766]
[1645837687515,8.34832043,94.485,94.381,22.7766]
[1645837687918,1.5827999,94.483,94.36,15.8931]
[1645837688118,47.86833277,94.484,94.365,43.26705628]
[1645837688119,107.81287055,94.479,94.365,43.26705628]
[1645837688317,5.61170667,94.478,94.365,43.26705628]
[1645837688517,1.72270588,94.476,94.365,43.26705628]
[1645837688716,4.236,94.475,94.365,43.26705628]
[1645837688916,12.71,94.47,94.365,43.26705628]
[1645837689119,1.61230863,94.459,94.365,43.26705628]
[1645837689318,1.87101273,94.457,94.365,43.26705628]
[1645837689921,2.4622355,94.456,94.365,43.26705628]
[1645837690418,1.74610605,94.457,94.366,2.86292427]
[1645837690618,1.74610605,94.457,94.365,43.26705628]
[1645837692120,2.4622355,94.456,94.365,43.26705628]
[1645837692320,106.0,94.455,94.365,43.26705628]
[1645837692523,1.37761852,94.454,94.365,43.26705628]
[1645837692719,3.83985402,94.454,94.365,43.26705628]
[1645837692921,46.42517999,94.453,94.365,43.26705628]
[1645837693122,1.55066758,94.452,94.365,43.26705628]
[1645837693423,1.50948388,94.451,94.365,43.26705628]
[1645837693719,4.21523518,94.45,94.365,43.26705628]
[1645837694020,22.88343815,94.449,94.315,4.236]
[1645837694222,22.88343815,94.449,94.314,2.64186374]
[1645837694223,1.42780795,94.448,94.314,2.64186374]
[1645837694420,109.89004345,94.448,94.314,2.64186374]
[1645837694620,106.0,94.446,94.314,2.64186374]
[1645837694820,1.40727866,94.445,94.314,2.64186374]
[1645837695024,26.32232068,94.445,94.332,48.14538402]
[1645837695225,1.80920908,94.443,94.332,48.14538402]
[1645837695423,106.0,94.441,94.332,48.14538402]
[1645837695622,106.0,94.439,94.332,48.14538402]
[1645837695822,106.0,94.437,94.332,48.14538402]
[1645837696022,106.0,94.435,94.332,48.14538402]
[1645837696222,1.39578919,94.434,94.332,48.14538402]
[1645837696523,106.0,94.429,94.332,48.14538402]
[1645837696721,106.0,94.427,94.332,48.14538402]
[1645837696923,1.81376524,94.426,94.332,48.14538402]
[1645837697122,4.27600074,94.426,94.332,48.14538402]
[1645837697323,106.0,94.424,94.332,48.14538402]
[1645837697522,1.40901956,94.423,94.332,48.14538402]
[1645837697727,26.32406158,94.423,94.332,48.14538402]
[1645837697926,45.77163796,94.422,94.332,48.14538402]
[1645837698123,1.85269814,94.421,94.332,48.14538402]
[1645837698323,1.74486994,94.42,94.332,48.14538402]
[1645837698523,36.06946938,94.42,94.332,48.14538402]
[1645837698725,23.97110504,94.419,94.332,48.14538402]
[1645837698924,24.90820603,94.419,94.332,48.14538402]
[1645837699124,1.51401977,94.417,94.332,48.14538402]
[1645837699525,24.90820603,94.416,94.332,48.14538402]
[1645837699725,1.39194712,94.415,94.332,48.14538402]
[1645837699926,26.30015315,94.415,94.332,48.14538402]
[1645837700125,4.05159299,94.414,94.332,48.14538402]
[1645837700327,1.77692398,94.413,94.332,48.14538402]
[1645837700626,1.58690373,94.411,94.332,48.14538402]
[1645837700824,1.60681052,94.408,94.332,48.14538402]
[1645837701225,2.45539951,94.407,94.332,48.14538402]
[1645837701425,27.30829951,94.407,94.332,48.14538402]
[1645837701625,1.62806478,94.406,94.332,48.14538402]
[1645837701826,4.08346429,94.406,94.332,48.14538402]
[1645837702028,2.45539951,94.405,94.332,48.14538402]
[1645837703332,2.45539951,94.418,94.332,48.14538402]
[1645837703532,2.45539951,94.418,94.332,51.00830829]
[1645837703732,2.45539951,94.431,94.332,51.00830829]
[1645837704335,2.45539951,94.431,94.332,48.14538402]
[1645837704537,1.5049237,94.433,94.332,48.14538402]
[1645837704739,1.5049237,94.433,94.333,2.86292427]
[1645837705139,1.79579574,94.451,94.334,2.3591608]
[1645837705542,1.79579574,94.451,94.335,2.86292427]
[1645837705943,1.79579574,94.451,94.34,15.8964]
[1645837706343,23.3326,94.463,94.341,2.86292427]
[1645837706542,23.3326,94.463,94.342,106.0]
[1645837706742,2.46345985,94.477,94.353,106.0]
[1645837706943,2.46345985,94.477,94.355,106.0]
[1645837707143,24.91626637,94.477,94.356,2.68145946]
[1645837707542,24.91626637,94.477,94.37,15.8913]
[1645837707744,24.91626637,94.477,94.371,58.08381707]
[1645837707944,24.91626637,94.477,94.372,3.09813306]
[1645837708344,24.91626637,94.477,94.373,2.86292427]
[1645837709053,2.46345985,94.477,94.373,2.86292427]
[1645837709456,2.46345985,94.477,94.38,15.8897]
[1645837710055,2.46345985,94.477,94.381,106.0]
[1645837710254,2.46345985,94.477,94.381,108.86292427]
[1645837710455,2.46345985,94.477,94.382,2.86292427]
[1645837712957,4.11180749,94.49,94.382,2.86292427]
[1645837713160,4.11180749,94.49,94.38,15.8897]
[1645837713361,22.45280652,94.489,94.381,111.87930113]
[1645837713559,22.45280652,94.489,94.382,2.74979199]
[1645837713759,2.46345985,94.488,94.384,2.80722574]
[1645837714159,22.45280652,94.487,94.385,2.86292427]
[1645837714360,22.45280652,94.487,94.387,106.0]
[1645837714561,2.46341882,94.486,94.387,106.0]
[1645837714760,2.46341882,94.486,94.388,2.86292427]
[1645837715361,2.46341882,94.486,94.386,43.62394661]
[1645837715362,1.85997001,94.484,94.386,43.62394661]
[1645837715761,1.39202577,94.482,94.386,43.62394661]
[1645837716161,24.91622534,94.481,94.386,43.62394661]
[1645837716462,1.78563916,94.48,94.386,43.62394661]
[1645837716661,1.38113768,94.479,94.386,43.62394661]
[1645837716862,23.8339442,94.479,94.386,43.62394661]
[1645837717065,1.46644904,94.478,94.386,43.62394661]
[1645837717262,1.69830176,94.477,94.386,43.62394661]
[1645837717464,26.6145271,94.477,94.386,43.62394661]
[1645837717661,4.18980846,94.476,94.386,43.62394661]
[1645837717863,1.60450274,94.475,94.386,43.62394661]
[1645837718064,26.52072808,94.475,94.386,43.62394661]
[1645837718263,4.06915104,94.474,94.386,43.62394661]
[1645837718466,1.35864476,94.473,94.386,43.62394661]
[1645837718763,6.02900774,94.472,94.386,43.62394661]
[1645837718962,1.78230472,94.471,94.386,43.62394661]
[1645837719162,4.24572354,94.471,94.386,43.62394661]
[1645837719363,4.113507,94.47,94.386,43.62394661]
[1645837719562,26.56631352,94.47,94.386,43.62394661]
[1645837719763,3.96403904,94.469,94.386,43.62394661]
[1645837719964,1.72896427,94.468,94.386,43.62394661]
[1645837720163,26.64518961,94.468,94.386,43.62394661]
[1645837720364,1.64835231,94.466,94.386,43.62394661]
[1645837720764,2.46341882,94.465,94.386,43.62394661]
[1645837721168,24.8097,94.467,94.387,108.52252052]
[1645837721365,4.236,94.524,94.387,111.38544479]
[1645837721564,23.0166,94.504,94.392,2.54998064]
[1645837722064,23.0166,94.504,94.393,2.86292427]
[1645837722464,23.0166,94.504,94.4,15.8863]
[1645837722665,23.0166,94.504,94.402,47.34608927]
[1645837722864,23.0166,94.504,94.403,2.8658014]
[1645837723064,23.0166,94.504,94.403,5.72872567]
[1645837723264,45.46940652,94.504,94.403,5.72872567]
[1645837723464,45.46940652,94.504,94.404,2.86292427]
[1645837723866,45.46940652,94.504,94.411,106.0]
[1645837724069,45.46940652,94.504,94.41,15.8849]
[1645837724266,45.46940652,94.504,94.412,2.86292427]
[1645837725368,22.45280652,94.504,94.42,15.8829]
[1645837725569,22.45280652,94.519,94.421,152.16367779]
[1645837725769,1.8385451,94.543,94.423,106.0]
[1645837725969,23.9691,94.549,94.424,2.75289859]
[1645837726172,23.9691,94.549,94.431,106.0]
[1645837726370,23.9691,94.549,94.432,2.29879574]
[1645837726572,23.9691,94.549,94.432,5.16172001]
[1645837726769,23.9691,94.549,94.433,2.86292427]
[1645837727570,23.9691,94.549,94.443,106.0]
[1645837727970,23.9691,94.549,94.444,2.86292427]
[1645837728372,23.9691,94.549,94.445,106.0]
[1645837728573,23.9691,94.549,94.446,2.51196142]
[1645837728776,23.9691,94.549,94.447,106.0]
[1645837728974,23.9691,94.549,94.448,3.10509741]
[1645837729374,23.9691,94.549,94.45,2.56655185]
[1645837729575,23.9691,94.549,94.461,47.02973153]
[1645837729775,1.70754289,94.566,94.461,153.02973153]
[1645837729979,20.36139245,94.573,94.462,2.86292427]
[1645837730177,2.46341882,94.6,94.464,2.94555838]
[1645837730376,113.0,94.607,94.467,2.84304]
[1645837730576,113.0,94.607,94.51,15.8675]
[1645837730775,113.0,94.607,94.512,47.80006686]
[1645837730976,47.1783,94.617,94.514,2.69447878]
[1645837731379,1.42788044,94.635,94.522,2.56168919]
[1645837731576,1.79566024,94.642,94.522,2.56168919]
[1645837731977,1.79566024,94.642,94.531,106.0]
[1645837732178,1.79566024,94.642,94.533,106.0]
[1645837732377,14.5977193,94.644,94.534,2.64849165]
[1645837732577,1.51806888,94.656,94.534,2.64849165]
[1645837732778,20.65564319,94.651,94.535,106.0]
[1645837732980,20.65564319,94.651,94.536,2.58173276]
[1645837733278,8.83404615,94.651,94.538,2.32176131]
[1645837733479,8.83404615,94.651,94.56,15.8599]
[1645837733679,8.83404615,94.651,94.561,45.6857532]
[1645837734283,3.94258268,94.65,94.561,45.6857532]
[1645837734685,2.46341882,94.649,94.561,45.6857532]
[1645837736588,1.64071514,94.647,94.561,45.6857532]
[1645837736986,1.66246998,94.645,94.561,45.6857532]
[1645837737184,17.83412675,94.646,94.561,45.6857532]
[1645837737384,22.7594,94.652,94.562,106.0]
[1645837738486,22.7594,94.652,94.561,45.6857532]
[1645837738686,1.64557483,94.651,94.561,45.6857532]
[1645837740492,22.7594,94.652,94.561,45.6857532]
[1645837741095,1.553488,94.651,94.561,45.6857532]
[1645837741398,1.55647028,94.65,94.561,45.6857532]
[1645837741596,1.5287621,94.649,94.561,45.6857532]
[1645837741794,22.18440529,94.649,94.561,45.6857532]
[1645837741994,1.46455581,94.648,94.561,45.6857532]
[1645837742193,1.45590794,94.647,94.561,45.6857532]
[1645837742393,1.8379936,94.646,94.561,45.6857532]
[1645837742822,1.73108776,94.644,94.561,45.6857532]
[1645837743197,17.06091402,94.643,94.53,15.8629]